[Event "26th Hit Open-A 2022"]
[Site "Nova Gorica"]
[Date "2022.09.17"]
[Round "2.26"]
[White "Thuesen, Mogens"]
[Black "Hercog, Nusa"]
[Result "0-1"]
[ECO "B12"]
[WhiteElo "2242"]
[BlackElo "2019"]
[Annotator "TA"]
[PlyCount "92"]
[EventDate "2022.09.16"]
[EventType "swiss"]
[EventCountry "SLO"]
[SourceTitle "playchess.com"]
[Source "ChessBase"]
[SourceQuality "1"]
[TimeControl "5400+30"]

{[%evp 12,92,26,22,29,24,20,18,18,8,14,-31,0,-12,6,9,14,10,8,15,18,0,9,0,0,0,0,0,0,0,0,0,0,3,4,0,-4,-28,11,0,62,58,105,107,86,85,84,52,72,90,93,73,65,60,80,73,143,96,131,27,51,0,0,0,0,0,0,-70,0,0,0,-57,0,0,0,0,0,0,0,0,0,-2122,-2143]} 1. e4 {[%emt 0:00:17]} c6 {[%emt 0:00:12]} 2. d4 {[%emt 0:00:12]} d5 {[%emt 0:00:11]} 3. e5 {[%emt 0:00:36]} Bf5 {[%emt 0:00:27]} 4. c4 {[%emt 0:00:08]} e6 {[%emt 0:01:58]} 5. Nc3 {[%emt 0:00:06]} dxc4 {[%emt 0:08:44]} 6. Bxc4 {[%emt 0:01:52]} Nd7 {[%emt 0:00:27]} 7. Nge2 {[%emt 0:00:22][%cal Bg1e2,Be2g3,Bg3e4,Be4c3][%mdl 32]} Ne7 {[%emt 0:06:46][%cal Bg8e7,Be7d5,Bd5c3][%mdl 32] B12: Caro-Kann: Advance Variation.} 8. Ng3 {[%emt 0:00:27] The modern move.} Bg6 {[%emt 0:01:48]} 9. h4 {[%emt 0:00:11]} h6 {[%emt 0:06:56] The position is equal.} 10. h5 {[%emt 0:07:12]} Bh7 {[%emt 0:00:28]} 11. Nge4 {[%emt 0:01:11][%cal Re4d6] [#]} Nd5 {[%emt 0:04:33] [#]} (11... Nf5 $5 {[%cal Rd7b6]}) 12. Bb3 $146 {[%emt 0:07:31]} ({Predecessor:} 12. Rh3 Nxc3 13. Nxc3 Nb6 14. Bb3 a5 15. Kf1 Qd7 16. Be3 Nd5 17. Nxd5 exd5 18. Rg3 {1-0 (37) Marrero Lopez,Y (2278)-Goncalves,I (2067) Santos 2011}) 12... Nxc3 {[%emt 0:05:54]} (12... f6 {is more complex.} 13. Qg4 Bf5 14. Qg3 Qb6) 13. Nxc3 {[%emt 0:00:43]} Nb6 {[%emt 0:00:13]} 14. Be3 {[%emt 0:11:49]} Qd7 {[%emt 0:02:55]} 15. Rc1 {[%emt 0:11:12]} Be7 {[%emt 0:07:56]} 16. Qg4 {[%emt 0:02:09]} Rg8 {[%emt 0:00:58]} 17. O-O {[%emt 0:02:41]} g6 {[%emt 0:05:13]} 18. a4 {[%emt 0:12:36]} a5 {[%emt 0:07:59]} 19. Rfd1 {[%emt 0:02:15]} gxh5 {[%emt 0:01:54]} 20. Qxh5 {[%emt 0:00:26]} Bf5 {[%emt 0:02:26]} 21. f3 {[%emt 0:05:55] Against Bg4} (21. Bxh6 Bg4 22. Qh2 Bf3 $17) 21... Nd5 $1 {[%emt 0:06:46]} 22. Nxd5 {[%emt 0:01:15]} (22. Bxh6 Rh8 23. Nxd5 exd5 $17) 22... exd5 {[%emt 0:00:14]} 23. Kf2 $36 {[%emt 0:00:20][%mdl 2048] White is pushing.} (23. Bxh6 Rh8 24. g4 Bf8 $15) 23... O-O-O {[%emt 0:05:23]} 24. Rh1 {[%emt 0:04:10]} (24. Bxh6 Rh8 25. Rh1 Rdg8 $17) 24... Kb8 {[%emt 0:04:17]} (24... f6 $5 {[%cal Rf6e5]}) 25. Qxh6 {[%emt 0:03:19]} Rg6 {[%emt 0:00:41]} (25... Rdf8 $1 $11) 26. Qf4 $14 {[%emt 0:03:28]} Ka8 {[%emt 0:06:36]} (26... Be6 $14) 27. Rh5 $16 {[%emt 0:01:32]} Be6 {[%emt 0:03:17]} 28. Bc2 {[%emt 0:04:09]} Rg7 {[%emt 0:00:28]} 29. Bf5 {[%emt 0:02:12]} Rdg8 {[%emt 0:01:24]} 30. g4 {[%emt 0:04:36]} Bg5 {[%emt 0:01:27]} 31. Bxe6 {[%emt 0:01:29]} fxe6 {[%emt 0:00:50]} 32. Qh2 {[%emt 0:01:01]} ({Reject} 32. Rxg5 Rxg5 33. Rh1 (33. Qxg5 Rxg5 34. Bxg5 Qh7 $17) 33... R5g7 $15) 32... Bxe3+ {[%emt 0:02:18]} 33. Kxe3 {[%emt 0:00:05]} Qc7 {[%emt 0:02:36]} ({Better is} 33... Rf7) 34. Rh8 {[%emt 0:01:51]} (34. Qc2 $142) 34... Qb6 {[%emt 0:00:15] [#]} 35. Rxg8+ {[%emt 0:00:07]} (35. Rh6 $1 $16) 35... Rxg8 {[%emt 0:00:03][%mdl 4096] Endgame KQR-KQR} 36. Rc3 {[%emt 0:02:24]} ({White should try} 36. Qc2 $14) 36... Qb4 $11 {[%emt 0:00:28]} 37. Qh7 {[%emt 0:01:18]} Rf8 {[%emt 0:00:37]} 38. Qc2 {[%emt 0:00:11]} Qe7 {[%emt 0:01:05] And now ...Qg5+ would win.} ({Don't do} 38... c5 39. Rxc5 Qe1+ 40. Qe2 $16) 39. Qg6 {[%emt 0:02:25] Inhibits Qg5+.} (39. Qh2 $11) 39... Qb4 {[%emt 0:01:08]} (39... Qh4 $1 $15 40. Qd3 Qh6+ 41. Ke2 Qh2+ 42. Kd1 Qxb2) 40. Qc2 {[%emt 0:02:32]} Qe7 {[%emt 0:00:11] Strongly threatening ...Qg5+.} ({Don't take} 40... c5 41. Rxc5 Qe1+ 42. Qe2 $16) 41. Ke2 {[%emt 0:00:42]} ({White should play} 41. Qh2 $11) 41... Qh4 {[%emt 0:01:33]} (41... Rh8 $1 $15 42. Qb3 Rh2+ 43. Kd1 Qh7) 42. Qd2 {[%emt 0:01:38]} Qh2+ {[%emt 0:01:10]} 43. Kd1 {[%emt 0:00:05]} Qh1+ {[%emt 0:00:33]} 44. Qe1 {[%emt 0:00:27]} Qg2 {[%emt 0:00:21]} 45. Kc1 {[%emt 0:01:11][%cal Oc3c6]} Rxf3 {[%emt 0:00:45]} 46. Rc5 $2 {[%emt 0:00:28][%mdl 8192]} (46. Rxf3 $11 Qxf3 47. Qxa5+ Kb8 48. g5) 46... Rf1 {[%emt 0:00:11] Weighted Error Value: White=0.25 (precise) /Black=0.13 (very precise)} 0-1

[Event "26th Hit Open-A 2022"]
[Site "Nova Gorica"]
[Date "2022.09.17"]
[Round "2.27"]
[White "Bajo, Tin"]
[Black "Zamar Kodelja, Jurij"]
[Result "0-1"]
[ECO "B06"]
[WhiteElo "1999"]
[BlackElo "2241"]
[Annotator "TA"]
[PlyCount "82"]
[EventDate "2022.09.16"]
[EventType "swiss"]
[EventCountry "SLO"]
[SourceTitle "playchess.com"]
[Source "ChessBase"]
[SourceQuality "1"]
[TimeControl "5400+30"]

{[%evp 15,82,24,29,21,77,55,54,18,34,30,17,21,52,22,55,44,108,102,164,-29,-17,-15,-8,0,-19,-33,-4,-6,-9,0,-16,-114,-111,-134,-125,-154,-155,-155,-153,-154,-149,-143,-134,-141,-112,-134,-121,-121,-129,-133,-127,-152,-139,-172,-168,-166,-152,-420,-429,-554,-342,-770,-733,-29992,-29993,-29993,-29994,-29994,-29995]} 1. e4 {[%emt 0:00:03]} g6 {[%emt 0:00:38]} 2. d4 {[%emt 0:00:06]} Bg7 {[%emt 0:00:06]} 3. Nc3 {[%emt 0:00:15]} d6 {[%emt 0:00:28]} 4. Be3 {[%emt 0:00:17]} a6 {[%emt 0:00:09]} 5. Qd2 {[%emt 0:00:16]} b5 {[%emt 0:01:07]} 6. f3 {[%emt 0:00:48]} Nd7 {[%emt 0:00:09]} 7. h4 {[%emt 0:00:19]} h5 {[%emt 0:04:55] 7...Ngf6 is the recent fashion.} 8. Nh3 {[%emt 0:00:39]} Bb7 {[%emt 0:00:43]} 9. Ng5 {[%emt 0:00:45] B06: Modern Defence.} Rc8 {[%emt 0:00:30]} (9... Ngf6 $11) 10. O-O-O {[%emt 0:05:53]} (10. a4 $5 {[%cal Ra4b5]}) 10... c5 {[%emt 0:02:05]} 11. dxc5 {[%emt 0:03:28] White is slightly better.} (11. e5 $5 {[%cal Re5e6]} cxd4 12. e6 fxe6 13. Bxd4 $11) 11... Nxc5 {[%emt 0:00:30]} 12. Bd4 {[%emt 0:00:16]} Nf6 {[%emt 0:00:35]} 13. Kb1 {[%emt 0:14:18]} Qc7 {[%emt 0:07:34]} 14. Be2 {[%emt 0:10:55]} Ncd7 {[%emt 0:12:50]} 15. a3 {[%emt 0:16:29]} Ne5 {[%emt 0:02:54]} (15... Bh6 $14) 16. f4 $16 {[%emt 0:15:43]} ({But not} 16. Bxe5 $6 dxe5 17. a4 bxa4 $11) 16... Ned7 {[%emt 0:00:58] [#]} (16... Neg4 $16) 17. Qe3 $146 {[%emt 0:02:01]} (17. Rhf1 $18) ({Predecessor:} 17. Bf3 e5 18. Be3 exf4 19. Bxf4 Ne5 20. Qxd6 Qxd6 21. Rxd6 Nfg4 22. Rb6 Rxc3 23. bxc3 {1-0 (49) Balin,J (2302)-Petran,P (2361) Czech Republic 2010}) 17... e5 $11 {[%emt 0:00:36]} 18. fxe5 {[%emt 0:01:20]} dxe5 {[%emt 0:00:30]} 19. Ba7 {[%emt 0:00:24]} O-O {[%emt 0:03:18]} 20. Qf2 {[%emt 0:00:54][%cal Og2g4]} Nc5 {[%emt 0:01:04]} (20... Bh6 $5 {[%cal Rh6g5]}) 21. Bxc5 {[%emt 0:00:30]} Qxc5 {[%emt 0:00:30]} 22. Qxc5 {[%emt 0:03:11]} Rxc5 {[%emt 0:00:00]} 23. Bd3 {[%emt 0:03:08] [#]} (23. Rhf1 $11 {keeps the balance.}) 23... Bh6 $1 $17 {[%emt 0:01:05]} 24. Nh3 {[%emt 0:02:15]} Kg7 {[%emt 0:01:24]} 25. Nf2 {[%emt 0:03:27]} Be3 {[%emt 0:00:16]} 26. Rdf1 {[%emt 0:01:26]} Rd8 {[%emt 0:01:57][%cal Bf8d8,Bd8d4,Bd4b4,Bb4b6][%mdl 32]} 27. Ncd1 {[%emt 0:03:26]} Bh6 {[%emt 0:00:21] Black has more active pieces. A strong pair of Bishops.} 28. Re1 {[%emt 0:03:41]} Rd4 {[%emt 0:01:04]} 29. Re2 {[%emt 0:01:40]} Rc7 {[%emt 0:02:33]} 30. Nc3 {[%emt 0:00:57]} b4 {[%emt 0:00:29]} 31. axb4 {[%emt 0:01:17]} Rxb4 {[%emt 0:00:06]} 32. Na2 {[%emt 0:00:53]} Rb6 {[%emt 0:00:05]} 33. Ka1 {[%emt 0:03:23]} Bc8 {[%emt 0:01:19]} 34. b3 {[%emt 0:01:13]} Be6 {[%emt 0:00:15] Against Bc4} 35. Kb2 {[%emt 0:00:15]} Nd7 {[%emt 0:00:37] And now ...Nc5 would win.} 36. Nc1 $2 {[%emt 0:02:06] Now White is beyond hope.} (36. Nc3 $17 {was the only defense.}) 36... Nc5 $19 {[%emt 0:00:11]} 37. Rd1 {[%emt 0:00:04]} Bxc1+ {[%emt 0:00:49]} 38. Rxc1 $2 {[%emt 0:00:57] [#]} (38. Kxc1 Nxb3+ 39. Kb2 Nd4+ 40. Kc1) 38... Nxb3 $1 {[%emt 0:00:15][%mdl 512] ( -> ...Na5+)} 39. cxb3 {[%emt 0:00:31]} (39. Rd1 Nd4+) 39... Rxb3+ {[%emt 0:00:06] Black mates.} 40. Ka2 {[%emt 0:00:25]} Rxc1 {[%emt 0:00:16]} 41. Bc2 {[%emt 0:00:33]} Rb5+ {[%emt 0:00:21] Weighted Error Value: White=0.69/Black=0.24 (precise)} 0-1

[Event "26th Hit Open-A 2022"]
[Site "Nova Gorica"]
[Date "2022.09.17"]
[Round "2.28"]
[White "Kepplinger, Lukas"]
[Black "Acimovic, Vasja"]
[Result "0-1"]
[ECO "E14"]
[WhiteElo "1994"]
[BlackElo "2237"]
[Annotator "TA"]
[PlyCount "68"]
[EventDate "2022.09.16"]
[EventType "swiss"]
[EventCountry "SLO"]
[SourceTitle "playchess.com"]
[Source "ChessBase"]
[SourceQuality "1"]
[TimeControl "5400+30"]

{[%evp 16,68,29,0,8,14,7,0,16,-3,25,28,15,8,8,8,8,8,8,8,17,0,0,-32,0,-17,-15,-67,-73,-133,-127,-128,-128,-199,-185,-164,-109,-417,-425,-430,-387,-424,-408,-1493,-817,-872,-780,-776,-770,-787,-673,-725,-607,-896,-680]} 1. d4 {[%emt 0:00:03]} d5 {[%emt 0:00:40]} 2. c4 {[%emt 0:00:11]} e6 {[%emt 0:00:08]} 3. Nf3 {[%emt 0:00:26]} Nf6 {[%emt 0:00:06]} 4. Nc3 {[%emt 0:00:14]} Be7 {[%emt 0:00:08]} 5. e3 {[%emt 0:09:55]} O-O {[%emt 0:00:31]} 6. Bd3 {[%emt 0:00:09]} b6 {[%emt 0:00:13]} 7. cxd5 {[%emt 0:00:28]} exd5 {[%emt 0:00:15]} 8. O-O {[%emt 0:00:32]} Bb7 {[%emt 0:02:09]} 9. Qc2 {[%emt 0:03:43]} Nbd7 $1 {[%emt 0:01:09] The main line 9...Nbd7 scores better than 9...c5. E14: Queen's Indian: Classical Variation (4 e3).} 10. b3 {[%emt 0:00:58]} Re8 {[%emt 0:03:32]} 11. Bb2 {[%emt 0:03:16]} a6 {[%emt 0:01:12] The position is equal.} 12. Rfe1 {[%emt 0:01:34] [#]} Ne4 $146 {[%emt 0:07:15]} ({Predecessor:} 12... Bd6 13. Rac1 Nf8 14. a3 Qd7 15. Bf5 Qd8 16. b4 g6 17. Bh3 b5 18. Qb3 N8d7 {1-0 (43) Bezrukov,I (1604)-Aleksandrov,V (1867) Voronezh 2015}) 13. Ne5 {[%emt 0:07:23][%cal Rc3e4]} Ndf6 {[%emt 0:16:28]} 14. f3 {[%emt 0:03:22]} Nxc3 {[%emt 0:00:31]} 15. Qxc3 {[%emt 0:04:24]} c5 {[%emt 0:02:35]} 16. Rac1 {[%emt 0:07:39]} Rc8 {[%emt 0:02:35][%cal Ba8c8,Bc8c7,Bc7e7][%mdl 32]} 17. Qd2 {[%emt 0:00:32]} Bd6 {[%emt 0:01:47]} 18. Bf5 {[%emt 0:11:17]} Rc7 {[%emt 0:01:08]} 19. a3 {[%emt 0:04:50]} Rce7 {[%emt 0:09:00]} 20. Rc2 {[%emt 0:17:52]} b5 {[%emt 0:05:46]} 21. Nd3 {[%emt 0:03:45]} (21. Bc3 $11) 21... c4 $15 {[%emt 0:01:36]} 22. Nc5 {[%emt 0:00:32]} ({White should try} 22. Ne5) 22... Bc8 $17 {[%emt 0:00:49]} 23. Bxc8 {[%emt 0:00:34]} Qxc8 {[%emt 0:00:03]} 24. b4 {[%emt 0:01:02] [#]} (24. Rcc1 $17) 24... Bf4 $1 $36 {[%emt 0:04:10][%mdl 2560] White is under strong pressure.} 25. Rc3 {[%emt 0:01:55]} Qf5 {[%emt 0:01:37]} (25... Qb8 $19 26. g4 Qd6) 26. Qf2 $2 {[%emt 0:01:49][%mdl 8192] [#] Now White is beyond hope.} (26. Bc1 $17) 26... Bxh2+ $1 $19 {[%emt 0:00:43][%mdl 512]} 27. Kf1 {[%emt 0:01:31]} ({Worse is} 27. Kxh2 Ng4+ 28. Kg3 Nxf2) 27... Qg6 {[%emt 0:02:23] Threatens to win with ...Bg3.} 28. g4 {[%emt 0:03:10]} Bd6 {[%emt 0:00:21] Strongly threatening ...h5.} ({Weaker is} 28... Qh6 29. g5 Qxg5 30. Qxh2 $14) 29. Kg2 {[%emt 0:01:33]} (29. Qg2 $142 h5 30. gxh5 Qxh5 31. Kg1) 29... h5 {[%emt 0:00:30][%cal Of6g4] ...Nxg4! is the strong threat. Black is clearly winning.} 30. Rh1 {[%emt 0:03:26]} hxg4 {[%emt 0:01:57]} 31. f4 {[%emt 0:00:10]} g3 {[%emt 0:05:29]} 32. Qf3 {[%emt 0:00:24]} Bxc5 {[%emt 0:00:19]} 33. bxc5 {[%emt 0:00:47]} a5 {[%emt 0:01:29]} 34. Bc1 {[%emt 0:02:42]} Qe4 {[%emt 0:01:47] Weighted Error Value: White=0.70/Black=0.42} 0-1

[Event "26th Hit Open-A 2022"]
[Site "Nova Gorica"]
[Date "2022.09.17"]
[Round "2.29"]
[White "Garsky, Vladyslav"]
[Black "Charaus, Florian"]
[Result "1-0"]
[ECO "B10"]
[WhiteElo "2229"]
[BlackElo "1993"]
[Annotator "TA"]
[PlyCount "69"]
[EventDate "2022.09.16"]
[EventType "swiss"]
[EventCountry "SLO"]
[SourceTitle "playchess.com"]
[Source "ChessBase"]
[SourceQuality "1"]
[TimeControl "5400+30"]

{[%evp 13,69,-20,-12,-21,-13,-17,-14,-31,-31,-33,-31,-22,-16,-23,-20,-77,-66,-94,-71,-101,-93,-83,-102,-94,-95,-89,-82,-93,-82,-141,-35,-131,-124,-224,-229,-222,-71,-78,178,183,188,189,190,185,216,211,209,206,382,382,382,381,366,366,366,366,352,351]} 1. e4 {[%emt 0:01:05]} c6 {[%emt 0:00:05]} 2. c4 {[%emt 0:00:20]} d5 {[%emt 0:00:04]} 3. exd5 {[%emt 0:00:05]} cxd5 {[%emt 0:00:04]} 4. cxd5 {[%emt 0:00:05]} Nf6 {[%emt 0:00:34]} 5. Qa4+ {[%emt 0:00:15]} Nbd7 {[%emt 0:00:28]} 6. Nc3 {[%emt 0:00:06]} g6 {[%emt 0:00:04]} 7. Bc4 {[%emt 0:00:30]} Bg7 {[%emt 0:00:09][%mdl 1024] Black has compensation.} 8. Nf3 {[%emt 0:00:08] B10: Caro-Kann: 2 d3 and 2 c4.} O-O {[%emt 0:00:52]} 9. d3 {[%emt 0:00:08]} a6 {[%emt 0:00:06] Strongly threatening ...b5.} 10. Qa3 {[%emt 0:00:26] The position is equal.} b6 {[%emt 0:00:04]} 11. O-O {[%emt 0:00:25]} Bb7 {[%emt 0:00:05]} 12. Re1 {[%emt 0:00:31]} Re8 {[%emt 0:00:29]} 13. Ng5 {[%emt 0:01:23]} Rc8 {[%emt 0:00:04]} 14. d6 {[%emt 0:06:36]} (14. Bxa6 $2 Ra8 15. d6 (15. Bxb7 $2 Rxa3 16. bxa3 Qc7 $19) 15... e6 $19) (14. Be3 $11) 14... e6 $17 {[%emt 0:00:37]} 15. Bd2 {[%emt 0:06:19][%cal Re1e6] [#]} (15. Bxa6 $2 Ra8 16. d4 (16. Bxb7 $2 Rxa3 17. bxa3 Ng4 $19) 16... Rxa6 $19) 15... h6 $146 {[%emt 0:00:08]} ({Predecessor:} 15... Bf8 16. Rac1 b5 17. Bb3 Nc5 18. Nce4 Nfxe4 19. Nxe4 Bxe4 20. dxe4 Bxd6 21. e5 Bf8 {½-½ (37) Miezis,N (2463)-De Schampheleire,G (2347) Charleroi 2018}) 16. Nge4 {[%emt 0:00:19]} Nxe4 {[%emt 0:01:24]} 17. Nxe4 {[%emt 0:00:09]} Bxe4 {[%emt 0:00:23]} 18. Rxe4 {[%emt 0:00:15]} b5 {[%emt 0:00:30]} 19. Bb3 {[%emt 0:00:30]} Nc5 {[%emt 0:00:30]} 20. Re2 {[%emt 0:00:30]} Qxd6 {[%emt 0:08:17]} 21. d4 {[%emt 0:08:10]} (21. Bb4 $142) 21... Nb7 {[%emt 0:00:56]} (21... Bxd4 22. Bxh6 e5 23. Rf1 $15) (21... Qxd4 $17 22. Be3 Qe4) 22. Bb4 {[%emt 0:01:14] [#]} (22. Rd1 $15) 22... Qb6 $1 {[%emt 0:01:56]} (22... Qxd4 23. Qxa6 Qxb4 24. Qxb7 $15) 23. d5 {[%emt 0:10:33] [#]} (23. Bc2 $17 {was necessary.}) 23... a5 $1 $19 {[%emt 0:01:32]} 24. dxe6 {[%emt 0:00:06]} fxe6 {[%emt 0:00:37]} (24... Kh7 $19 25. Rae1 axb4 26. Qxb4 Nc5) 25. Be7 $17 {[%emt 0:00:05]} b4 $2 {[%emt 0:04:54][%mdl 8192] A mistake that costs the game.} (25... Rc6 $17 {aiming for ...b4.} 26. Rae1 b4 27. Rxe6 (27. Bxe6+ $2 Kh8 $19) 27... bxa3 28. Rxc6+ Qxb3 29. axb3 axb2) 26. Rxe6 $18 {[%emt 0:01:43]} Qxf2+ {[%emt 0:05:26]} 27. Kxf2 {[%emt 0:00:46]} bxa3 {[%emt 0:00:06]} 28. Bxa3 {[%emt 0:06:43] Threatens to win with Rxe8+. This bishop pair is nice.} (28. Rxg6+ Kh7 29. Rxg7+ Kxg7 30. Bxa3 Nc5 $17) 28... Bd4+ {[%emt 0:01:54]} 29. Kf3 {[%emt 0:01:00] White threatens Rxe8+ and mate.} Kg7 {[%emt 0:00:02]} 30. Rd1 {[%emt 0:00:30]} a4 $2 {[%emt 0:07:40]} (30... Rxe6 31. Bxe6 Rd8) 31. Rxd4 {[%emt 0:04:58] White is winning.} axb3 {[%emt 0:00:11]} 32. Rd7+ {[%emt 0:00:05]} Kh8 {[%emt 0:00:06]} 33. Rxe8+ {[%emt 0:00:25]} ({Stronger than} 33. Rxb7 Rxe6 34. Rxb3 Ra8 $15) ({Don't play} 33. Rxg6 bxa2 34. Rxh6+ Kg8 $18) 33... Rxe8 {[%emt 0:00:06]} 34. axb3 {[%emt 0:00:04]} ({But not} 34. Rxb7 $2 bxa2 35. Re7 Rxe7 36. Bxe7 a1=Q $19) 34... Na5 {[%emt 0:00:11]} 35. Bb4 {[%emt 0:00:23] Weighted Error Value: White=0.22 (precise) /Black=0.41} 1-0

[Event "26th Hit Open-A 2022"]
[Site "Nova Gorica"]
[Date "2022.09.17"]
[Round "2.30"]
[White "Vah, Denis"]
[Black "Saypuri Srithan"]
[Result "1/2-1/2"]
[ECO "D31"]
[WhiteElo "1988"]
[BlackElo "2199"]
[Annotator "TA"]
[PlyCount "46"]
[EventDate "2022.09.16"]
[EventType "swiss"]
[EventCountry "SLO"]
[SourceTitle "playchess.com"]
[Source "ChessBase"]
[SourceQuality "1"]
[TimeControl "5400+30"]

{[%evp 9,46,15,31,26,26,11,12,17,20,12,16,10,19,14,79,37,47,53,51,49,56,33,43,43,30,27,38,27,50,32,47,18,21,14,29,11,28,0,8]} 1. d4 {[%emt 0:00:02]} d5 {[%emt 0:00:12]} 2. c4 {[%emt 0:00:07]} e6 {[%emt 0:00:11]} 3. Nc3 {[%emt 0:00:05]} Bb4 {[%emt 0:00:06]} 4. cxd5 {[%emt 0:00:14]} exd5 {[%emt 0:00:06]} 5. Bf4 {[%emt 0:00:05]} c6 {[%emt 0:00:27]} 6. Nf3 {[%emt 0:04:44] D31: Queen's Gambit Declined: Semi-Slav without ...Nf6 (+ Marshall Gambit and Noteboom) and Exchange Variation lines without ...Nf6.} Ne7 {[%emt 0:07:11]} 7. Rc1 {[%emt 0:02:32]} O-O {[%emt 0:06:07]} 8. e3 {[%emt 0:00:48] [#]} Ng6 $146 {[%emt 0:17:36]} ({Predecessor:} 8... Bd6 9. Bg3 Re8 10. Bd3 Bf5 11. Ne5 Bxd3 12. Qxd3 Ng6 13. Nf3 Qe7 14. Bxd6 Qxd6 15. O-O Nd7 16. b4 b5 17. a4 a6 18. Rb1 Nb6 {½-½ (18) Muse,M (2474)-Loeffler,S (2398) Austria 2002}) 9. Bg3 {[%emt 0:07:11]} Bf5 {[%emt 0:04:02]} 10. Be2 {[%emt 0:05:03]} Re8 {[%emt 0:06:05]} 11. O-O {[%emt 0:01:32]} h5 {[%emt 0:02:38]} (11... a5 $11) 12. h3 {[%emt 0:03:49]} (12. Qb3 $5 {[%cal Rb3b4]} Qe7 13. Na4 $16 (13. a3 Bxc3 14. Rxc3 h4 $11)) 12... Bd6 {[%emt 0:13:10]} 13. Bxd6 {[%emt 0:02:57]} Qxd6 {[%emt 0:00:05]} 14. Ne1 {[%emt 0:00:51]} h4 $1 {[%emt 0:02:42]} 15. Bg4 {[%emt 0:05:22]} Bxg4 {[%emt 0:08:38]} 16. Qxg4 {[%emt 0:02:00]} Nd7 {[%emt 0:00:12]} 17. Nd3 {[%emt 0:02:37]} Nf6 {[%emt 0:01:27]} 18. Qd1 {[%emt 0:03:52]} Re7 {[%emt 0:08:23]} 19. Qc2 {[%emt 0:05:23]} Nd7 {[%emt 0:02:28]} 20. Ne2 {[%emt 0:16:04]} Nb6 {[%emt 0:02:51]} 21. b3 {[%emt 0:01:30]} Qf6 {[%emt 0:02:45]} 22. Kh1 {[%emt 0:03:25]} Rae8 {[%emt 0:00:45]} 23. Ng1 {[%emt 0:00:10]} Nc8 {[%emt 0:05:15] Weighted Error Value: White=0.11 (very precise) /Black=0.12 (very precise)} 1/2-1/2